[Event "Championnat du monde jeunes U12F"]
[Date "2024.11.23"]
[White "Pavithra R V"]
[Black "Sinkar, Anagha Aniket"]
[WhiteElo "1854"]
[BlackElo "1723"]
[Round "8.10"]
[Result "1-0"]
[TimeControl "5400+30"]

1. e4 {[%clk 1:30:58]} 1... c5 {[%clk 1:30:27]} 2. Nf3 {[%clk 1:31:20]} 2... Nc6
{[%clk 1:30:44]} 3. d3 {[%clk 1:31:45]} 3... Nf6 {[%clk 1:30:42]} 4. g3 {[%clk
1:32:10]} 4... g6 {[%clk 1:30:36]} 5. Bg2 {[%clk 1:32:26]} 5... Bg7 {[%clk
1:30:33]} 6. c3 {[%clk 1:32:14]} 6... O-O {[%clk 1:27:36]} 7. O-O {[%clk
1:32:34]} 7... d5 {[%clk 1:19:30]} 8. Nbd2 {[%clk 1:32:48]} 8... dxe4 {[%clk
1:18:08]} 9. dxe4 {[%clk 1:33:13]} 9... h6 {[%clk 1:15:11]} 10. h4 {[%clk
1:31:07]} 10... Bg4 {[%clk 1:11:48]} 11. Qc2 {[%clk 1:28:49]} 11... Qd7 {[%clk
1:03:46]} 12. Nb3 {[%clk 1:15:37]} 12... c4 {[%clk 0:59:12]} 13. Nbd2 {[%clk
1:05:28]} 13... Be6 {[%clk 0:53:22]} 14. Rd1 {[%clk 1:03:53]} 14... Rfd8 {[%clk
0:53:16]} 15. Bf1 {[%clk 1:00:02]} 15... Bg4 {[%clk 0:48:14]} 16. Be2 {[%clk
0:55:08]} 16... Bxf3 {[%clk 0:44:36]} 17. Bxf3 {[%clk 0:53:27]} 17... Qd3 {[%clk
0:44:30]} 18. Qxd3 {[%clk 0:52:14]} 18... cxd3 {[%clk 0:44:42]} 19. Nb3 {[%clk
0:51:29]} 19... Rac8 {[%clk 0:39:22]} 20. Bf4 {[%clk 0:50:34]} 20... b6 {[%clk
0:28:11]} 21. g4 {[%clk 0:44:03]} 21... g5 {[%clk 0:25:02]} 22. hxg5 {[%clk
0:44:12]} 22... hxg5 {[%clk 0:25:27]} 23. Bg3 {[%clk 0:44:33]} 23... Nh7 {[%clk
0:20:20]} 24. Nc1 {[%clk 0:42:31]} 24... Ne5 {[%clk 0:19:10]} 25. Bxe5 {[%clk
0:42:41]} 25... Bxe5 {[%clk 0:19:28]} 26. Nxd3 {[%clk 0:43:02]} 26... Bg7 {[%clk
0:19:30]} 27. Nb4 {[%clk 0:43:05]} 27... e6 {[%clk 0:14:51]} 28. Kf1 {[%clk
0:39:21]} 28... a5 {[%clk 0:13:37]} 29. Nc2 {[%clk 0:39:33]} 29... Nf8 {[%clk
0:11:44]} 30. Ke2 {[%clk 0:38:01]} 30... Ng6 {[%clk 0:11:46]} 31. Ke3 {[%clk
0:37:58]} 31... Ne5 {[%clk 0:11:20]} 32. Be2 {[%clk 0:37:23]} 32... Bf8 {[%clk
0:11:09]} 33. Rxd8 {[%clk 0:26:55]} 33... Rxd8 {[%clk 0:11:32]} 34. b4 {[%clk
0:26:44]} 34... axb4 {[%clk 0:11:22]} 35. cxb4 {[%clk 0:27:05]} 35... Rc8 {[%clk
0:09:38]} 36. Kd2 {[%clk 0:26:42]} 36... Rd8+ {[%clk 0:09:22]} 37. Kc3 {[%clk
0:21:21]} 37... Bg7 {[%clk 0:09:36]} 38. Kb3 {[%clk 0:21:14]} 38... Rd2 {[%clk
0:08:32]} 39. Re1 {[%clk 0:19:12]} 39... Kf8 {[%clk 0:08:27]} 40. Ne3 {[%clk
0:16:59]} 40... Nc6 {[%clk 0:08:36]} 41. Nc2 {[%clk 0:15:33]} 41... Ke7 {[%clk
0:06:27]} 42. f3 {[%clk 0:12:15]} 42... Ne5 {[%clk 0:05:50]} 43. a4 {[%clk
0:10:54]} 43... Nxf3 {[%clk 0:05:20]} 44. Bxf3 {[%clk 0:11:16]} 44... Rd3+
{[%clk 0:05:46]} 45. Kc4 {[%clk 0:11:16]} 45... Rxf3 {[%clk 0:06:07]} 46. Kb5
{[%clk 0:11:36]} 46... Rc3 {[%clk 0:06:14]} 47. Re2 {[%clk 0:11:39]} 47... Be5
{[%clk 0:05:42]} 48. Kxb6 {[%clk 0:11:48]} 48... Kd7 {[%clk 0:05:52]} 49. a5
{[%clk 0:10:11]} 49... Rc6+ {[%clk 0:05:52]} 50. Kb5 {[%clk 0:10:08]} 50... Kc7
{[%clk 0:05:22]} 51. Ne3 {[%clk 0:10:17]} 51... Kb7 {[%clk 0:04:22]} 52. Nc4
{[%clk 0:10:24]} 52... Bf4 {[%clk 0:04:33]} 53. Re1 {[%clk 0:09:49]} 53... Bg3
{[%clk 0:03:26]} 54. Rd1 {[%clk 0:10:09]} 54... Bc7 {[%clk 0:00:36]} 55. Rd7
{[%clk 0:10:37]} 55... f6 {[%clk 0:01:00]} 56. Rg7 {[%clk 0:10:59]} 56... e5
{[%clk 0:00:56]} 57. Re7 {[%clk 0:11:21]} 1-0

[Variant "Standard"]
[Site "Europe Echecs"]

[Event "Championnat du monde jeunes U12F"]
[Date "2024.11.23"]
[White "Siddhi Rao"]
[Black "Ivaschenko, Anna"]
[WhiteElo "1677"]
[BlackElo "1732"]
[Round "8.11"]
[Result "1-0"]
[TimeControl "5400+30"]

1. e4 {[%clk 1:30:57]} 1... e6 {[%clk 1:30:57]} 2. d4 {[%clk 1:31:22]} 2... d5
{[%clk 1:31:24]} 3. Nc3 {[%clk 1:31:48]} 3... Nf6 4. e5 {[%clk 1:32:12]} 4...
Nfd7 {[%clk 1:32:17]} 5. f4 {[%clk 1:32:38]} 5... c5 {[%clk 1:32:42]} 6. Nf3
{[%clk 1:33:05]} 6... Nc6 {[%clk 1:33:08]} 7. Be3 {[%clk 1:33:30]} 7... a6
{[%clk 1:33:35]} 8. a3 {[%clk 1:33:55]} 8... b5 {[%clk 1:33:55]} 9. Bd3 {[%clk
1:34:15]} 9... b4 {[%clk 1:17:13]} 10. axb4 {[%clk 1:34:25]} 10... cxb4 {[%clk
1:17:14]} 11. Ne2 {[%clk 1:33:45]} 11... Nb6 {[%clk 1:10:51]} 12. b3 {[%clk
1:33:00]} 12... Be7 {[%clk 1:09:03]} 13. O-O {[%clk 1:29:41]} 13... O-O {[%clk
0:56:33]} 14. Ng3 {[%clk 1:25:04]} 14... g6 {[%clk 0:51:12]} 15. Ng5 {[%clk
1:24:18]} 15... h6 {[%clk 0:45:32]} 16. Nf3 {[%clk 1:15:24]} 16... Kg7 {[%clk
0:41:13]} 17. Qd2 {[%clk 1:14:49]} 17... Rh8 {[%clk 0:40:04]} 18. Qf2 {[%clk
1:11:53]} 18... a5 {[%clk 0:36:59]} 19. h4 {[%clk 1:00:16]} 19... h5 {[%clk
0:34:16]} 20. Ne2 {[%clk 0:54:56]} 20... Ba6 {[%clk 0:32:51]} 21. Bxa6 {[%clk
0:53:38]} 21... Rxa6 {[%clk 0:33:05]} 22. Qg3 {[%clk 0:52:10]} 22... Qa8 {[%clk
0:27:26]} 23. Ng5 {[%clk 0:50:08]} 23... Bxg5 {[%clk 0:23:24]} 24. fxg5 {[%clk
0:48:06]} 24... Ne7 {[%clk 0:23:10]} 25. Qf4 {[%clk 0:47:32]} 25... Nf5 {[%clk
0:22:57]} 26. Ng3 {[%clk 0:47:52]} 26... Qc8 {[%clk 0:18:03]} 27. Nxf5+ {[%clk
0:46:53]} 27... exf5 {[%clk 0:17:15]} 28. Bd2 {[%clk 0:39:08]} 28... Ra8 {[%clk
0:13:04]} 29. Ra2 {[%clk 0:38:50]} 29... Qc6 {[%clk 0:08:57]} 30. Rfa1 {[%clk
0:38:36]} 30... Rhc8 {[%clk 0:06:12]} 31. Rxa5 {[%clk 0:35:15]} 31... Rxa5
{[%clk 0:05:48]} 32. Rxa5 {[%clk 0:35:40]} 32... Qxc2 {[%clk 0:03:31]} 33. e6
{[%clk 0:34:06]} 33... Qc7 {[%clk 0:02:39]} 34. Qxc7 {[%clk 0:31:49]} 34... Rxc7
{[%clk 0:03:05]} 35. Rb5 {[%clk 0:25:10]} 35... Nc8 {[%clk 0:01:59]} 36. Bf4
{[%clk 0:22:10]} 36... Rc3 {[%clk 0:01:34]} 37. Rb7 {[%clk 0:22:07]} 37... Rxb3
{[%clk 0:00:44]} 38. Rc7 {[%clk 0:22:08]} 38... Rc3 {[%clk 0:00:45]} 39. e7
{[%clk 0:21:54]} 39... Nxe7 {[%clk 0:00:50]} 40. Rxe7 {[%clk 0:22:18]} 40... Kf8
{[%clk 0:00:56]} 41. Bd6 {[%clk 0:21:22]} 41... Kg7 {[%clk 0:00:51]} 42. Bxb4
{[%clk 0:21:17]} 42... Rc4 {[%clk 0:00:39]} 43. Bc5 {[%clk 0:21:37]} 1-0

[Variant "Standard"]
[Site "Europe Echecs"]

[Event "Championnat du monde jeunes U12F"]
[Date "2024.11.23"]
[White "Gailevska, Milana"]
[Black "Bassari, Senem Gul"]
[WhiteElo "1698"]
[BlackElo "1778"]
[Round "8.12"]
[Result "0-1"]
[TimeControl "5400+30"]

1. d4 {[%clk 1:30:57]} 1... Nf6 {[%clk 1:30:51]} 2. c4 {[%clk 1:31:21]} 2... g6
{[%clk 1:31:16]} 3. Nc3 {[%clk 1:31:47]} 3... Bg7 {[%clk 1:31:00]} 4. e4 {[%clk
1:32:12]} 4... d6 {[%clk 1:31:26]} 5. Nf3 {[%clk 1:32:37]} 5... O-O {[%clk
1:31:45]} 6. Be2 {[%clk 1:33:01]} 6... Nbd7 {[%clk 1:32:11]} 7. O-O {[%clk
1:33:23]} 7... e5 {[%clk 1:32:37]} 8. Qc2 {[%clk 1:33:38]} 8... Qe7 {[%clk
1:33:01]} 9. Bg5 {[%clk 1:32:48]} 9... Qe8 {[%clk 1:32:01]} 10. Rad1 {[%clk
1:29:32]} 10... h6 {[%clk 1:31:46]} 11. Bc1 {[%clk 1:24:11]} 11... Qe7 {[%clk
1:31:50]} 12. Rfe1 {[%clk 1:16:43]} 12... c5 {[%clk 1:31:36]} 13. dxe5 {[%clk
1:13:17]} 13... dxe5 {[%clk 1:30:26]} 14. Nd5 {[%clk 1:11:01]} 14... Nxd5 {[%clk
1:30:18]} 15. cxd5 {[%clk 1:11:03]} 15... Qd6 {[%clk 1:30:24]} 16. Nd2 {[%clk
1:09:56]} 16... Nb6 {[%clk 1:24:25]} 17. a4 {[%clk 1:01:34]} 17... a5 {[%clk
1:23:01]} 18. Nc4 {[%clk 0:58:09]} 18... Nxc4 {[%clk 1:23:01]} 19. Bxc4 {[%clk
0:58:28]} 19... f5 {[%clk 1:20:45]} 20. f3 {[%clk 0:49:04]} 20... f4 {[%clk
1:18:31]} 21. Qe2 {[%clk 0:45:50]} 21... Bf6 {[%clk 1:17:44]} 22. g3 {[%clk
0:45:39]} 22... Bg5 {[%clk 1:15:01]} 23. h4 {[%clk 0:44:47]} 23... Bf6 {[%clk
1:10:29]} 24. gxf4 {[%clk 0:39:56]} 24... Kh7 {[%clk 1:06:23]} 25. fxe5 {[%clk
0:35:21]} 25... Bxe5 {[%clk 1:05:57]} 26. Qg2 {[%clk 0:31:47]} 26... Qf6 {[%clk
1:00:30]} 27. f4 {[%clk 0:26:54]} 27... Bd4+ {[%clk 0:55:23]} 28. Kh1 {[%clk
0:25:53]} 28... Bd7 {[%clk 0:38:28]} 29. e5 {[%clk 0:20:40]} 29... Qxh4+ {[%clk
0:36:08]} 30. Qh2 {[%clk 0:21:01]} 30... Qg4 {[%clk 0:30:43]} 31. Rf1 {[%clk
0:18:34]} 31... Bf5 {[%clk 0:21:45]} 32. Bd3 {[%clk 0:16:13]} 32... Rad8 {[%clk
0:09:56]} 33. Bxf5 {[%clk 0:15:57]} 33... Rxf5 {[%clk 0:09:05]} 34. Qg2 {[%clk
0:14:12]} 34... Rh5+ {[%clk 0:09:25]} 35. Qh2 {[%clk 0:14:27]} 35... Rxh2+
{[%clk 0:08:09]} 36. Kxh2 {[%clk 0:14:51]} 36... Rxd5 {[%clk 0:07:47]} 37. Rfe1
{[%clk 0:12:48]} 37... Bf2 {[%clk 0:07:52]} 38. Rg1 {[%clk 0:11:04]} 38... Qh4+
{[%clk 0:08:10]} 0-1

[Variant "Standard"]
[Site "Europe Echecs"]

[Event "Championnat du monde jeunes U12F"]
[Date "2024.11.23"]
[White "Xia, Miaoyan"]
[Black "Ejsymont, Blanka"]
[WhiteElo "1711"]
[BlackElo "1945"]
[Round "8.13"]
[Result "1-0"]
[TimeControl "5400+30"]

1. e4 {[%clk 1:30:57]} 1... c6 {[%clk 1:30:54]} 2. d4 {[%clk 1:31:19]} 2... d5
{[%clk 1:31:19]} 3. e5 {[%clk 1:31:42]} 3... Bf5 {[%clk 1:31:45]} 4. c4 {[%clk
1:32:04]} 4... e6 {[%clk 1:32:09]} 5. Nc3 {[%clk 1:32:26]} 5... Bb4 {[%clk
1:32:16]} 6. cxd5 {[%clk 1:32:44]} 6... cxd5 {[%clk 1:32:29]} 7. Bd3 {[%clk
1:32:23]} 7... Ne7 {[%clk 1:32:02]} 8. a3 {[%clk 1:31:52]} 8... Ba5 {[%clk
1:27:54]} 9. Nf3 {[%clk 1:28:35]} 9... Nbc6 {[%clk 1:27:04]} 10. O-O {[%clk
1:26:34]} 10... O-O {[%clk 1:24:35]} 11. Be3 {[%clk 1:23:30]} 11... Bxd3 {[%clk
1:17:20]} 12. Qxd3 {[%clk 1:23:17]} 12... Nf5 {[%clk 1:16:51]} 13. Rac1 {[%clk
1:21:19]} 13... Bb6 {[%clk 1:09:01]} 14. Na4 {[%clk 1:15:29]} 14... Na5 {[%clk
1:04:13]} 15. Nd2 {[%clk 1:11:50]} 15... Qh4 {[%clk 0:59:23]} 16. Nxb6 {[%clk
1:09:49]} 16... axb6 {[%clk 0:59:24]} 17. Rc7 {[%clk 1:08:41]} 17... Rab8 {[%clk
0:53:10]} 18. Rfc1 {[%clk 1:03:31]} 18... Nc6 {[%clk 0:50:12]} 19. Rd7 {[%clk
0:58:38]} 19... f6 {[%clk 0:33:04]} 20. exf6 {[%clk 0:47:49]} 20... gxf6 {[%clk
0:21:22]} 21. b4 {[%clk 0:30:32]} 21... b5 {[%clk 0:12:49]} 22. Nf3 {[%clk
0:27:24]} 22... Qg4 {[%clk 0:09:08]} 23. h3 {[%clk 0:16:41]} 23... Qg6 {[%clk
0:07:57]} 24. Bf4 {[%clk 0:11:46]} 24... Qe8 {[%clk 0:04:43]} 25. Rc7 {[%clk
0:11:48]} 25... Kh8 {[%clk 0:00:52]} 26. g4 {[%clk 0:09:29]} 26... Nfe7 {[%clk
0:00:46]} 27. Bd6 {[%clk 0:09:23]} 27... Qd8 {[%clk 0:00:34]} 28. Bxe7 {[%clk
0:09:42]} 28... Qxc7 {[%clk 0:00:37]} 29. Bxf8 {[%clk 0:09:56]} 29... Rxf8
{[%clk 0:00:54]} 30. Rc5 {[%clk 0:09:46]} 30... Qf4 {[%clk 0:00:37]} 31. Qe3
{[%clk 0:09:32]} 31... Qxe3 {[%clk 0:00:44]} 32. fxe3 {[%clk 0:09:56]} 32... Ra8
{[%clk 0:00:44]} 33. Rxb5 {[%clk 0:06:05]} 33... Rxa3 {[%clk 0:01:06]} 34. Kf2
{[%clk 0:06:26]} 34... Rb3 {[%clk 0:00:42]} 35. Rxb7 {[%clk 0:06:43]} 35... Rxb4
{[%clk 0:00:35]} 36. Rc7 {[%clk 0:07:05]} 36... Na5 {[%clk 0:00:36]} 37. g5
{[%clk 0:07:22]} 37... f5 {[%clk 0:00:34]} 38. Ne5 {[%clk 0:07:41]} 38... Rb7
{[%clk 0:00:39]} 39. Rc5 {[%clk 0:07:26]} 39... Nb3 {[%clk 0:00:44]} 40. Rc6
{[%clk 0:07:48]} 40... Re7 {[%clk 0:00:34]} 41. Ke2 {[%clk 0:06:41]} 41... Na5
{[%clk 0:00:40]} 42. Rb6 {[%clk 0:06:21]} 42... Kg7 {[%clk 0:00:37]} 43. Kf3
{[%clk 0:06:22]} 43... Nb7 {[%clk 0:00:36]} 44. h4 {[%clk 0:06:40]} 44... Nd8
{[%clk 0:00:38]} 45. h5 {[%clk 0:06:40]} 45... Nb7 {[%clk 0:00:33]} 46. h6+
{[%clk 0:06:49]} 46... Kg8 {[%clk 0:00:35]} 47. Rc6 {[%clk 0:06:50]} 47... Kf8
{[%clk 0:00:32]} 48. Rc8+ {[%clk 0:06:48]} 48... Re8 {[%clk 0:00:51]} 49. Rxe8+
{[%clk 0:07:09]} 49... Kxe8 {[%clk 0:01:03]} 50. g6 {[%clk 0:07:33]} 50... hxg6
{[%clk 0:00:39]} 51. h7 {[%clk 0:07:59]} 51... Ke7 {[%clk 0:00:49]} 52. h8=Q
{[%clk 0:08:23]} 52... f4 {[%clk 0:01:07]} 53. Qg7+ {[%clk 0:08:42]} 53... Ke8
{[%clk 0:01:20]} 54. Qf7+ {[%clk 0:09:07]} 54... Kd8 {[%clk 0:01:46]} 55. Qd7#
{[%clk 0:09:31]} 1-0

[Variant "Standard"]
[Site "Europe Echecs"]

[Event "Championnat du monde jeunes U12F"]
[Date "2024.11.23"]
[White "Siskou, Evangelia"]
[Black "Tursunalieva, Nurelina"]
[WhiteElo "1884"]
[BlackElo "1701"]
[Round "8.14"]
[Result "1-0"]
[TimeControl "5400+30"]

1. e4 {[%clk 1:30:51]} 1... c5 {[%clk 1:30:54]} 2. Nf3 {[%clk 1:31:15]} 2... d6
{[%clk 1:31:21]} 3. d4 {[%clk 1:31:32]} 3... cxd4 4. Nxd4 {[%clk 1:31:59]} 4...
Nf6 {[%clk 1:32:09]} 5. Nc3 {[%clk 1:32:23]} 5... a6 {[%clk 1:32:36]} 6. f3
{[%clk 1:32:27]} 6... e6 {[%clk 1:32:38]} 7. Be3 {[%clk 1:32:07]} 7... b5 {[%clk
1:32:32]} 8. a3 {[%clk 1:30:12]} 8... Bb7 {[%clk 1:32:38]} 9. Qd2 {[%clk
1:30:31]} 9... Nbd7 {[%clk 1:24:52]} 10. O-O-O {[%clk 1:21:37]} 10... Nb6 {[%clk
1:20:25]} 11. g4 {[%clk 1:18:34]} 11... h6 {[%clk 1:10:05]} 12. h4 {[%clk
1:12:15]} 12... Nfd7 {[%clk 0:58:10]} 13. Qf2 {[%clk 1:06:12]} 13... d5 {[%clk
0:50:43]} 14. exd5 {[%clk 0:56:07]} 14... Nxd5 {[%clk 0:50:35]} 15. Nxd5 {[%clk
0:56:23]} 15... Bxd5 {[%clk 0:50:32]} 16. Bd3 {[%clk 0:36:11]} 16... Qa5 {[%clk
0:36:58]} 17. Nb3 {[%clk 0:33:24]} 17... Qa4 {[%clk 0:33:10]} 18. Be4 {[%clk
0:24:21]} 18... Nf6 {[%clk 0:20:09]} 19. Bxd5 {[%clk 0:08:29]} 19... Nxd5 {[%clk
0:20:01]} 20. Rhe1 {[%clk 0:06:18]} 20... Rc8 {[%clk 0:12:52]} 21. Nc5 {[%clk
0:00:49]} 21... Qc4 {[%clk 0:02:12]} 22. b3 {[%clk 0:00:38]} 22... Qc3 {[%clk
0:02:29]} 23. Rxd5 {[%clk 0:00:36]} 23... Be7 {[%clk 0:00:33]} 24. Bd4 {[%clk
0:00:40]} 24... Qa5 {[%clk 0:00:37]} 25. Rde5 {[%clk 0:00:38]} 25... Qxa3+
{[%clk 0:00:32]} 26. Bb2 {[%clk 0:01:06]} 26... Qb4 {[%clk 0:00:39]} 27. Nxe6
{[%clk 0:00:38]} 27... fxe6 {[%clk 0:00:39]} 28. Rxe6 {[%clk 0:01:07]} 28... Rc7
{[%clk 0:00:31]} 29. R1e4 {[%clk 0:00:43]} 29... Qa5 {[%clk 0:00:32]} 30. Qe2
{[%clk 0:01:09]} 30... O-O {[%clk 0:00:31]} 31. Rxe7 {[%clk 0:01:37]} 31... Rfc8
{[%clk 0:00:36]} 32. Re8+ {[%clk 0:01:43]} 32... Kh7 {[%clk 0:00:38]} 33. Rxc8
{[%clk 0:02:04]} 33... Rxc8 {[%clk 0:01:05]} 34. Re7 {[%clk 0:02:17]} 34... Rg8
{[%clk 0:01:18]} 35. Qe4+ {[%clk 0:02:36]} 35... Kh8 {[%clk 0:01:39]} 36. Qg6
{[%clk 0:02:49]} 1-0

[Variant "Standard"]
[Site "Europe Echecs"]

[Event "Championnat du monde jeunes U12F"]
[Date "2024.11.23"]
[White "Xu, Luna Yuexiu"]
[Black "Abylaykyzy, Bibisara"]
[WhiteElo "1821"]
[BlackElo "1694"]
[Round "8.15"]
[Result "1-0"]
[TimeControl "5400+30"]

1. e4 {[%clk 1:30:58]} 1... c5 {[%clk 1:30:50]} 2. Nf3 {[%clk 1:31:21]} 2... d6
{[%clk 1:31:16]} 3. d4 {[%clk 1:31:43]} 3... cxd4 {[%clk 1:31:43]} 4. Nxd4
{[%clk 1:32:01]} 4... Nf6 {[%clk 1:32:11]} 5. Nc3 {[%clk 1:32:19]} 5... a6
{[%clk 1:32:38]} 6. Be2 {[%clk 1:32:39]} 6... e5 {[%clk 1:33:00]} 7. Nb3 {[%clk
1:32:57]} 7... Be6 {[%clk 1:33:25]} 8. O-O {[%clk 1:32:58]} 8... Nbd7 {[%clk
1:33:50]} 9. Be3 {[%clk 1:33:16]} 9... Be7 {[%clk 1:34:15]} 10. a4 {[%clk
1:33:06]} 10... O-O {[%clk 1:34:37]} 11. Qd2 {[%clk 1:31:36]} 11... Rc8 {[%clk
1:32:01]} 12. Rfd1 {[%clk 1:29:06]} 12... Qc7 {[%clk 1:30:26]} 13. a5 {[%clk
1:26:57]} 13... Rfd8 {[%clk 1:29:21]} 14. f4 {[%clk 1:24:34]} 14... exf4 {[%clk
1:28:58]} 15. Bxf4 {[%clk 1:24:57]} 15... Ne5 {[%clk 1:29:26]} 16. Nd4 {[%clk
1:23:29]} 16... Nc4 {[%clk 1:27:27]} 17. Nxe6 {[%clk 1:20:27]} 17... fxe6 {[%clk
1:27:31]} 18. Bxc4 {[%clk 1:18:38]} 18... Qxc4 {[%clk 1:27:53]} 19. Qd3 {[%clk
1:18:23]} 19... d5 {[%clk 1:24:30]} 20. Ra4 {[%clk 1:15:01]} 20... Bc5+ {[%clk
1:22:44]} 21. Kf1 {[%clk 1:13:41]} 21... Qxd3+ {[%clk 1:22:19]} 22. cxd3 {[%clk
1:13:04]} 22... Rf8 {[%clk 1:19:00]} 23. Ke2 {[%clk 1:10:44]} 23... d4 {[%clk
1:17:23]} 24. Na2 {[%clk 1:10:33]} 24... Ng4 {[%clk 1:15:07]} 25. Bg3 {[%clk
1:09:26]} 25... Ba7 {[%clk 1:15:20]} 26. Rc1 {[%clk 1:07:46]} 26... Ne3 {[%clk
1:13:20]} 27. Rb4 {[%clk 1:07:05]} 27... Rxc1 {[%clk 1:07:10]} 28. Nxc1 {[%clk
1:07:30]} 28... Rf7 {[%clk 1:07:37]} 29. Nb3 {[%clk 1:07:02]} 29... Rd7 {[%clk
1:00:20]} 30. Be5 {[%clk 1:06:45]} 30... Nxg2 {[%clk 0:58:49]} 31. Rc4 {[%clk
1:06:26]} 31... Kf7 {[%clk 0:56:20]} 32. Rc8 {[%clk 1:05:18]} 32... h6 {[%clk
0:43:56]} 33. Ra8 {[%clk 1:04:44]} 33... b5 {[%clk 0:44:20]} 34. axb6 {[%clk
1:04:46]} 34... Bxb6 {[%clk 0:44:43]} 35. Rxa6 {[%clk 1:04:59]} 35... Rb7 {[%clk
0:44:23]} 36. Nxd4 {[%clk 1:04:35]} 36... Nf4+ {[%clk 0:43:11]} 37. Kd2 {[%clk
1:03:15]} 37... Ng6 {[%clk 0:42:46]} 38. Nc6 {[%clk 1:02:20]} 38... Nxe5 {[%clk
0:43:00]} 39. Nxe5+ {[%clk 1:02:46]} 39... Kf6 {[%clk 0:43:26]} 40. Nd7+ {[%clk
0:59:10]} 40... Rxd7 {[%clk 0:43:50]} 41. Rxb6 {[%clk 0:59:37]} 41... g5 {[%clk
0:44:17]} 42. Ke3 {[%clk 0:59:43]} 42... h5 {[%clk 0:43:26]} 43. d4 {[%clk
0:59:41]} 43... g4 {[%clk 0:42:56]} 44. d5 {[%clk 0:59:54]} 44... h4 {[%clk
0:39:37]} 45. Rxe6+ {[%clk 1:00:14]} 45... Kg5 {[%clk 0:40:02]} 46. Re5+ {[%clk
1:00:31]} 46... Kh6 {[%clk 0:40:04]} 47. Rf5 {[%clk 0:59:49]} 47... Rb7 {[%clk
0:35:33]} 48. Rf2 {[%clk 0:59:56]} 48... Kg5 {[%clk 0:33:48]} 49. e5 {[%clk
0:59:22]} 49... g3 {[%clk 0:25:39]} 50. hxg3 {[%clk 0:59:31]} 50... hxg3 {[%clk
0:26:00]} 51. Rg2 {[%clk 0:59:57]} 51... Kf5 {[%clk 0:25:20]} 52. Kd4 {[%clk
0:59:00]} 52... Rb4+ {[%clk 0:25:37]} 53. Kc5 {[%clk 0:59:17]} 53... Rb3 {[%clk
0:26:00]} 54. e6 {[%clk 0:59:20]} 54... Kf6 {[%clk 0:25:22]} 55. Kc6 {[%clk
0:58:46]} 55... Ke7 {[%clk 0:22:05]} 56. d6+ {[%clk 0:58:57]} 56... Kxe6 {[%clk
0:19:46]} 57. d7 {[%clk 0:59:21]} 57... Rd3 {[%clk 0:20:10]} 58. Rxg3 {[%clk
0:59:41]} 58... Rxd7 {[%clk 0:18:58]} 59. Re3+ {[%clk 1:00:01]} 59... Kf5 {[%clk
0:19:16]} 60. Kxd7 {[%clk 1:00:27]} 1-0

[Variant "Standard"]
[Site "Europe Echecs"]

[Event "Championnat du monde jeunes U12F"]
[Date "2024.11.23"]
[White "Tu, Audrey"]
[Black "Messali Anger, Ilyana"]
[WhiteElo "1765"]
[BlackElo "1687"]
[Round "8.16"]
[Result "0-1"]
[TimeControl "5400+30"]

1. e4 {[%clk 1:30:57]} 1... e5 {[%clk 1:30:50]} 2. Nf3 {[%clk 1:31:23]} 2... Nc6
{[%clk 1:30:57]} 3. Bb5 {[%clk 1:31:50]} 3... a6 {[%clk 1:31:01]} 4. Ba4 {[%clk
1:32:14]} 4... Nf6 {[%clk 1:30:59]} 5. d3 {[%clk 1:32:39]} 5... b5 {[%clk
1:30:11]} 6. Bb3 {[%clk 1:33:02]} 6... Bc5 {[%clk 1:29:46]} 7. c3 {[%clk
1:33:07]} 7... d6 {[%clk 1:29:25]} 8. O-O {[%clk 1:28:28]} 8... h6 {[%clk
1:28:44]} 9. h3 {[%clk 1:28:06]} 9... O-O {[%clk 1:26:57]} 10. Re1 {[%clk
1:19:53]} 10... Re8 {[%clk 1:25:53]} 11. d4 {[%clk 1:09:16]} 11... exd4 {[%clk
1:19:44]} 12. cxd4 {[%clk 1:08:58]} 12... Bb4 {[%clk 1:11:47]} 13. Bd2 {[%clk
1:01:01]} 13... Bb7 {[%clk 0:57:12]} 14. d5 {[%clk 0:51:33]} 14... Bxd2 {[%clk
0:55:44]} 15. Nbxd2 {[%clk 0:48:59]} 15... Ne7 {[%clk 0:51:59]} 16. Nf1 {[%clk
0:44:54]} 16... Ng6 {[%clk 0:50:25]} 17. Ng3 {[%clk 0:44:13]} 17... h5 {[%clk
0:46:24]} 18. Ng5 {[%clk 0:39:17]} 18... h4 {[%clk 0:41:55]} 19. Nf5 {[%clk
0:36:53]} 19... Bc8 {[%clk 0:39:11]} 20. Qf3 {[%clk 0:29:54]} 20... Bxf5 {[%clk
0:36:10]} 21. exf5 {[%clk 0:26:43]} 21... Ne5 {[%clk 0:26:39]} 22. Qf4 {[%clk
0:22:19]} 22... Nd3 {[%clk 0:24:03]} 23. Rxe8+ {[%clk 0:22:19]} 23... Qxe8
{[%clk 0:24:04]} 24. Qd2 {[%clk 0:18:15]} 24... Nc5 {[%clk 0:20:58]} 25. Re1
{[%clk 0:17:33]} 25... Qd7 {[%clk 0:20:39]} 26. Bc2 {[%clk 0:17:25]} 26... Re8
{[%clk 0:17:24]} 27. Rxe8+ {[%clk 0:15:50]} 27... Qxe8 {[%clk 0:16:58]} 28. Nf3
Nfe4 29. Qe3 {[%clk 0:14:08]} 29... Nf6 {[%clk 0:12:15]} 30. Nxh4 {[%clk
0:13:30]} 30... Qxe3 {[%clk 0:11:14]} 31. fxe3 Nxd5 {[%clk 0:11:19]} 32. e4
{[%clk 0:13:05]} 32... Ne3 {[%clk 0:09:08]} 33. Bb1 {[%clk 0:11:52]} 33... Nc4
{[%clk 0:08:54]} 34. b4 {[%clk 0:11:21]} 34... Na3 {[%clk 0:08:00]} 35. bxc5
{[%clk 0:11:38]} 35... dxc5 {[%clk 0:06:27]} 36. Bd3 {[%clk 0:06:01]} 36... c4
{[%clk 0:06:27]} 37. Kf2 {[%clk 0:05:21]} 37... cxd3 {[%clk 0:05:53]} 38. Ke3
{[%clk 0:05:09]} 38... Nc2+ {[%clk 0:05:46]} 39. Kd2 {[%clk 0:04:56]} 39... c5
{[%clk 0:05:29]} 40. Nf3 {[%clk 0:04:09]} 40... c4 {[%clk 0:04:32]} 41. Ne5
{[%clk 0:03:01]} 41... Na3 {[%clk 0:03:41]} 42. Nc6 {[%clk 0:02:23]} 42... Nb1+
{[%clk 0:03:25]} 43. Kc1 {[%clk 0:02:04]} 43... d2+ {[%clk 0:03:21]} 44. Kc2
{[%clk 0:01:56]} 44... c3 {[%clk 0:03:05]} 45. Nb4 {[%clk 0:01:41]} 45... Na3+
{[%clk 0:03:10]} 46. Kd1 {[%clk 0:01:58]} 46... Nc4 {[%clk 0:03:14]} 47. Nd5
{[%clk 0:01:13]} 47... Nb2+ {[%clk 0:03:31]} 48. Kc2 {[%clk 0:01:11]} 48...
d1=Q+ {[%clk 0:03:42]} 49. Kxc3 {[%clk 0:01:31]} 49... Na4+ {[%clk 0:03:27]} 50.
Kb4 {[%clk 0:01:45]} 50... Qb1+ {[%clk 0:03:20]} 51. Ka5 {[%clk 0:02:02]} 51...
Qe1+ {[%clk 0:03:36]} 52. Nb4 {[%clk 0:02:17]} 52... Nc5 {[%clk 0:03:44]} 53. a4
{[%clk 0:02:16]} 53... Nd3 54. axb5 {[%clk 0:02:18]} 54... Qxb4+ {[%clk
0:04:10]} 55. Kb6 {[%clk 0:02:44]} 55... Qxb5+ {[%clk 0:04:23]} 56. Ka7 {[%clk
0:03:03]} 56... Nc5 {[%clk 0:04:41]} 57. f6 {[%clk 0:01:23]} 57... Qb7# {[%clk
0:05:04]} 0-1

[Variant "Standard"]
[Site "Europe Echecs"]